fUSD/lending_fUSD_20251120
["ID","MTS","AMOUNT","RATE_DAILY","PERIOD"]
[394492966,1763630170490,10000.01,0.00015699,2]
[394492967,1763630170511,10000.01,0.00015699,2]
[394492968,1763630170531,10000.01,0.00015699,2]
[394492969,1763630170552,10000.01,0.00015699,2]
[394492970,1763630170737,10000.01,0.00015699,2]
[394492971,1763630170760,10000.01,0.00015699,2]
[394492972,1763630170781,10000.01,0.00015699,2]
[394492973,1763630170807,48750.65936938,0.00015699,2]
[394492974,1763630170830,1000.0,0.00015699,2]
[394492975,1763630170852,40000.0,0.00015699,2]
[394492976,1763630170876,34082.601448,0.00015699,2]
[394492977,1763630170900,1052.0,0.00015699,2]
[394492978,1763630170919,2000.0,0.00015699,2]
[394492979,1763630170942,110722.35918262,0.00015699,2]
[394492980,1763630206563,151.0,0.00041991,120]
[394492981,1763630209893,150.0,0.00041991,45]
[394492982,1763630228712,461.51,0.00016,7]
[394492983,1763630233573,2067.27,0.00022,45]
[394492985,1763630330747,610.0,0.00015667,2]
[394492986,1763630389658,1000.0,0.00015641,2]
[394492990,1763630443903,153.0,0.0004199,120]
[394492992,1763630465174,150.0,0.0004199,30]
[394492993,1763630474215,34000.0,0.0004199,32]
[394492996,1763630652187,150.0,0.00015652,2]
[394492997,1763630706219,999.0,0.0001568,3]
[394492998,1763630707105,982.37,7.84e-05,2]
[394492999,1763630707372,982.37,8.253e-05,2]
[394493000,1763630707575,982.37,8.665e-05,2]
[394493001,1763630707772,982.37,9.078e-05,2]
[394493002,1763630707811,150.0,0.000162,2]
[394493003,1763630707986,982.37,9.491e-05,2]
[394493004,1763630708198,982.37,9.903e-05,2]
[394493005,1763630708229,150.0,0.000162,2]
[394493006,1763630708422,982.37,0.00010316,2]
[394493007,1763630708645,982.37,0.00010728,2]
[394493008,1763630708873,692.05,0.00011141,2]
[394493009,1763630708899,290.32,0.00011141,2]
[394493010,1763630709118,982.37,0.00011554,2]
[394493011,1763630709349,982.37,0.00011966,2]
[394493012,1763630709557,982.37,0.00012379,2]
[394493013,1763630709914,982.37,0.00012792,2]
[394493014,1763630710008,982.37,0.00013204,2]
[394493015,1763630710193,982.37,0.00013617,2]
[394493016,1763630710392,982.37,0.00014029,2]
[394493017,1763630710593,982.37,0.00014442,2]
[394493018,1763630710825,982.37,0.00014855,2]
[394493019,1763630711044,868.36,0.00015267,2]
[394493020,1763630711069,114.01,0.00015267,2]
[394493021,1763630711267,982.37,0.0001568,2]
[394493022,1763630711565,150.0,0.000162,2]
[394493023,1763630718610,150.0,0.000162,2]
[394493024,1763630720189,150.0,0.000162,2]
[394493025,1763630721471,150.0,0.000162,2]
[394493026,1763630728466,150.0,0.000162,2]
[394493027,1763630728597,150.0,0.000162,2]
[394493028,1763630737417,150.0,0.000162,2]
[394493029,1763630738157,150.0,0.000162,2]
[394493030,1763630742704,150.0,0.000162,2]
[394493031,1763630764561,1287.13070868,0.00011,2]
[394493032,1763630767200,150.0,0.00015659,2]
[394493037,1763630805769,200.0,0.00015666,2]
[394493038,1763630813950,5000.0002022,0.000162,5]
[394493041,1763630831779,800.0,0.000159,5]
[394493042,1763630844617,200.0,0.00015716,2]
[394493048,1763630916760,2220.04717683,0.00015807,2]
[394493051,1763630978537,222.41932101,0.000162,2]
[394493062,1763631031594,-250.0,0.00016288,2]
[394493063,1763631031604,-1724.0,0.000163,2]
[394493064,1763631031614,-169.83784692,0.0001633,2]
[394493065,1763631031623,-171.25086211,0.0001633,2]
[394493066,1763631031633,-200.0,0.0001634,2]
[394493067,1763631031643,-300.0,0.00016359,2]
[394493068,1763631031652,-1200.0,0.00016359,2]
[394493069,1763631031663,-300.0,0.00016359,2]
[394493070,1763631031679,-284.80657,0.0001636,2]
[394493071,1763631031688,-284.80657,0.0001636,2]
[394493072,1763631031697,-169.16770946,0.0001636,2]
[394493073,1763631031710,-115.63886054,0.0001636,2]
[394493074,1763631031721,-284.80657,0.0001636,2]
[394493075,1763631031730,-284.80657,0.0001636,2]
[394493076,1763631031741,-284.80657,0.0001636,2]
[394493077,1763631031751,-168.0,0.00016394,2]
[394493078,1763631031762,-151.0,0.00016426,2]
[394493079,1763631031771,-550.0,0.00016427,2]
[394493080,1763631031781,-108.30142946,0.00016428,2]
[394493081,1763631031795,-1091.69857054,0.00016428,2]
[394493082,1763631031805,-500.0,0.00016428,2]
[394493083,1763631031815,-318.64087307,0.00016428,2]
[394493084,1763631031825,-500.0,0.00016428,2]
[394493085,1763631031835,-500.0,0.00016428,2]
[394493086,1763631031845,-500.0,0.00016428,2]
[394493087,1763631031855,-359.53428596,0.00016428,2]
[394493088,1763631031868,-500.0,0.00016428,2]
[394493089,1763631031878,-479.11745982,0.00016428,2]
[394493090,1763631031888,-500.0,0.00016428,2]
[394493091,1763631031897,-301.48896148,0.00016428,2]
[394493092,1763631031907,-500.0,0.00016428,2]
[394493093,1763631031917,-500.0,0.00016428,2]
[394493097,1763631032132,-500.0,0.00016428,2]
[394493098,1763631032143,-500.0,0.00016428,2]
[394493099,1763631032155,-500.0,0.00016428,2]
[394493100,1763631032165,-500.0,0.00016428,2]
[394493101,1763631032175,-500.0,0.00016428,2]
[394493102,1763631032185,-500.0,0.00016428,2]
[394493103,1763631032195,-500.0,0.00016428,2]
[394493104,1763631032204,-500.0,0.00016428,2]
[394493105,1763631032214,-500.0,0.00016428,2]
[394493106,1763631032224,-500.0,0.00016428,2]
[394493107,1763631032234,-500.0,0.00016428,2]
[394493108,1763631032245,-500.0,0.00016428,2]
[394493109,1763631032255,-500.0,0.00016428,2]
[394493110,1763631032264,-500.0,0.00016428,2]
[394493111,1763631032274,-500.0,0.00016428,2]
[394493112,1763631032283,-500.0,0.00016428,2]
[394493113,1763631032293,-500.0,0.00016428,2]
[394493114,1763631032303,-500.0,0.00016428,2]
[394493115,1763631032312,-500.0,0.00016428,2]
[394493116,1763631032322,-500.0,0.00016428,2]
[394493117,1763631032332,-197.31295989,0.00016428,2]
[394493118,1763631032344,-302.68704011,0.00016428,2]
[394493119,1763631032353,-500.0,0.00016428,2]
[394493120,1763631032363,-500.0,0.00016428,2]
[394493121,1763631032372,-500.0,0.00016428,2]
[394493122,1763631032382,-500.0,0.00016428,2]
[394493123,1763631032411,-500.0,0.00016428,2]
[394493124,1763631032421,-500.0,0.00016428,2]
[394493125,1763631032433,-500.0,0.00016428,2]
[394493126,1763631032443,-500.0,0.00016428,2]
[394493127,1763631032455,-120.51295989,0.00016428,2]
[394493128,1763631032648,-379.48704011,0.00016428,2]
[394493129,1763631032658,-500.0,0.00016428,2]
[394493130,1763631032669,-500.0,0.00016428,2]
[394493131,1763631032680,-500.0,0.00016428,2]
[394493132,1763631032690,-500.0,0.00016428,2]
[394493133,1763631032700,-500.0,0.00016428,2]
[394493134,1763631032710,-500.0,0.00016428,2]
[394493135,1763631032719,-500.0,0.00016428,2]
[394493136,1763631032729,-500.0,0.00016428,2]
[394493137,1763631032740,-500.0,0.00016428,2]
[394493138,1763631032750,-500.0,0.00016428,2]
[394493139,1763631032759,-500.0,0.00016428,2]
[394493140,1763631032770,-500.0,0.00016428,2]
[394493141,1763631032779,-500.0,0.00016428,2]
[394493142,1763631032789,-611.68777499,0.00016428,2]
[394493143,1763631032799,-500.0,0.00016428,2]
[394493144,1763631032810,-500.0,0.00016428,2]
[394493145,1763631032821,-500.0,0.00016428,2]
[394493146,1763631032831,-500.0,0.00016428,2]
[394493147,1763631032842,-500.0,0.00016428,2]
[394493148,1763631032853,-500.0,0.00016428,2]
[394493149,1763631032863,-500.0,0.00016428,2]
[394493150,1763631032874,-500.0,0.00016428,2]
[394493151,1763631032884,-503.22737761,0.00016428,2]
[394493152,1763631032893,-257.81513203,0.00016428,2]
[394493153,1763631032913,-245.41224558,0.00016428,2]
[394493154,1763631032924,-503.22737761,0.00016428,2]
[394493155,1763631032933,-503.22737761,0.00016428,2]
[394493156,1763631032943,-503.22737761,0.00016428,2]
[394493157,1763631032952,-503.22737761,0.00016428,2]
[394493158,1763631032961,-503.22737761,0.00016428,2]
[394493159,1763631032972,-503.22737761,0.00016428,2]
[394493160,1763631032981,-503.22737761,0.00016428,2]
[394493161,1763631032991,-503.22737761,0.00016428,2]
[394493162,1763631033001,-503.22737761,0.00016428,2]
[394493163,1763631033011,-503.22737761,0.00016428,2]
[394493164,1763631033021,-503.22737761,0.00016428,2]
[394493165,1763631033030,-503.22737761,0.00016428,2]
[394493166,1763631033039,-503.22737761,0.00016428,2]
[394493167,1763631033049,-503.22737761,0.00016428,2]
[394493168,1763631033059,-503.22737761,0.00016428,2]
[394493169,1763631033068,-503.22737761,0.00016428,2]
[394493170,1763631033078,-503.22737761,0.00016428,2]
[394493171,1763631033088,-503.22737761,0.00016428,2]
[394493172,1763631033098,-503.22737761,0.00016428,2]
[394493173,1763631033108,-503.22737761,0.00016428,2]
[394493174,1763631033118,-503.22737761,0.00016428,2]
[394493175,1763631033128,-503.22737761,0.00016428,2]
[394493176,1763631033138,-503.22737761,0.00016428,2]
[394493177,1763631033148,-503.22737761,0.00016428,2]
[394493178,1763631033158,-503.22737761,0.00016428,2]
[394493179,1763631033167,-503.22737761,0.00016428,2]
[394493180,1763631033178,-503.22737761,0.00016428,2]
[394493181,1763631033187,-503.22737761,0.00016428,2]
[394493182,1763631033197,-503.22737761,0.00016428,2]
[394493183,1763631033207,-503.22737757,0.00016428,2]
[394493184,1763631033217,-503.22737757,0.00016428,2]
[394493185,1763631033227,-503.22737757,0.00016428,2]
[394493186,1763631033237,-503.22737757,0.00016428,2]
[394493187,1763631033246,-18129.04121595,0.00016429,2]
[394493194,1763631037602,-3113.38398378,0.00016429,2]
[394493195,1763631037660,-4785.40873408,0.00016429,2]
[394493196,1763631037671,-9942.2534261,0.00016429,2]
[394493197,1763631037716,-724029.91264009,0.00016429,2]
[394493198,1763631037726,-7390.7752,0.0001643,2]
[394493199,1763631037736,-1000.0,0.0001643,2]
[394493200,1763631037745,-2500.0,0.0001643,2]
[394493201,1763631037755,-159.36334129,0.00016438,2]
[394493202,1763631037764,-500.0,0.00016438,2]
[394493203,1763631037774,-500.0,0.00016438,2]
[394493205,1763631037783,-500.0,0.00016438,2]
[394493207,1763631037792,-500.0,0.00016438,2]
[394493209,1763631037802,-500.0,0.00016438,2]
[394493211,1763631037812,-500.0,0.00016438,2]
[394493213,1763631037821,-587.10645924,0.00016438,2]
[394493215,1763631037831,-500.0,0.00016438,2]
[394493217,1763631037840,-3011.97,0.00016438,2]
[394493219,1763631037850,-2248.339,0.00016472,2]
[394493221,1763631037859,-181.946,0.00016472,2]
[394493223,1763631037868,-500.0,0.00016473,2]
[394493225,1763631037878,-162.06198392,0.00016473,2]
[394493227,1763631037887,-500.0,0.00016473,2]
[394493229,1763631037896,-498.59718969,0.00016473,2]
[394493232,1763631037906,-587.83390611,0.00016473,2]
[394493233,1763631037915,-500.0,0.00016473,2]
[394493235,1763631037924,-284.49479379,0.00016473,2]
[394493236,1763631037934,-503.34067771,0.00016473,2]
[394493237,1763631037943,-500.0,0.00016473,2]
[394493238,1763631037952,-500.0,0.00016473,2]
[394493239,1763631037962,-500.0,0.00016473,2]
[394493240,1763631037971,-502.43033754,0.00016473,2]
[394493241,1763631037981,-533.32506398,0.00016473,2]
[394493242,1763631037990,-595.9134564,0.00016473,2]
[394493243,1763631038000,-500.0,0.00016473,2]
[394493244,1763631038009,-500.0,0.00016473,2]
[394493245,1763631038019,-2571.83570524,0.00016473,2]
[394493246,1763631038028,-10630.24177348,0.00016473,2]
[394493247,1763631038038,-151.9324977,0.00016513,2]
[394493248,1763631038048,-1084.38,0.0001652,2]
[394493249,1763631038058,-151.0,0.0001652,2]
[394493250,1763631038068,-151.0,0.0001652,2]
[394493251,1763631038077,-151.0,0.0001652,2]
[394493252,1763631038087,-151.0,0.0001652,2]
[394493253,1763631038097,-151.0,0.0001652,2]
[394493254,1763631038106,-151.0,0.0001652,2]
[394493255,1763631038116,-151.0,0.0001652,2]
[394493256,1763631038125,-151.0,0.0001652,2]
[394493257,1763631038135,-151.0,0.0001652,2]
[394493258,1763631038145,-151.0,0.0001652,2]
[394493259,1763631038155,-151.0,0.0001652,2]
[394493260,1763631038165,-151.0,0.0001652,2]
[394493261,1763631038174,-151.0,0.0001652,2]
[394493262,1763631038184,-259.03096989,0.0001652,2]
[394493263,1763631038193,-500.0,0.00016529,2]
[394493264,1763631038203,-500.0,0.00016529,2]
[394493265,1763631038212,-500.0,0.00016529,2]
[394493266,1763631038222,-500.0,0.00016529,2]
[394493267,1763631038232,-500.0,0.00016529,2]
[394493268,1763631038242,-500.0,0.00016529,2]
[394493269,1763631038252,-332.89900919,0.00016529,2]
[394493270,1763631038262,-500.0,0.00016529,2]
[394493271,1763631038272,-500.0,0.00016529,2]
[394493272,1763631038282,-10442.6606758,0.0001653,2]
[394493273,1763631038292,-7462.7321503,0.0001653,2]
[394493274,1763631038302,-329.377087,0.0001653,2]
[394493275,1763631038312,-9566.8452769,0.0001653,2]
[394493276,1763631038321,-339.53381853,0.00016573,2]
[394493277,1763631038337,-500.33471648,0.00016573,2]
[394493278,1763631038346,-500.0,0.00016573,2]
[394493279,1763631038356,-166.41858738,0.00016573,2]
[394493280,1763631038366,-171.89899809,0.00016573,2]
[394493281,1763631038376,-500.0,0.00016573,2]
[394493282,1763631038386,-500.0,0.00016573,2]
[394493283,1763631038395,-500.0,0.00016573,2]
[394493284,1763631038408,-530.5460866,0.00016573,2]
[394493285,1763631038418,-500.0,0.00016573,2]
[394493286,1763631038429,-500.0,0.00016603,2]
[394493287,1763631038440,-7728.28311348,0.00016629,2]
[394493288,1763631038451,-2571.83570519,0.00016632,2]
[394493289,1763631038462,-10630.24177342,0.00016632,2]
[394493290,1763631038473,-500.0,0.00016685,2]
[394493291,1763631038483,-151.0,0.00016724,2]
[394493292,1763631038495,-151.0,0.0001673,2]
[394493293,1763631038505,-166.66,0.00016731,2]
[394493294,1763631038516,-150.0,0.00016739,2]
[394493295,1763631038526,-200.0,0.00016739,2]
[394493296,1763631038536,-150.0,0.00016739,2]
[394493297,1763631038546,-150.0,0.00016739,2]
[394493298,1763631038555,-150.0,0.00016739,2]
[394493299,1763631038565,-150.0,0.00016739,2]
[394493300,1763631038575,-150.0,0.00016739,2]
[394493301,1763631038585,-150.0,0.00016739,2]
[394493302,1763631038595,-150.0,0.00016739,2]
[394493303,1763631038606,-150.0,0.00016739,2]
[394493304,1763631038616,-150.0,0.00016739,2]
[394493305,1763631038625,-151.0,0.00016743,2]
[394493306,1763631038635,-1165.49185209,0.00016763,2]
[394493307,1763631038645,-150.0,0.00016766,2]
[394493308,1763631038654,-150.0,0.00016766,2]
[394493309,1763631038665,-200.0,0.00016766,2]
[394493310,1763631038675,-185.3408132,0.00016766,2]
[394493311,1763631038686,-150.0,0.00016766,2]
[394493312,1763631038696,-150.0,0.00016766,2]
[394493313,1763631038706,-213.19,0.00016777,2]
[394493314,1763631038716,-1405.0,0.00016779,2]
[394493315,1763631038726,-3209.0,0.00016789,2]
[394493316,1763631038736,-2571.83570519,0.0001679,2]
[394493317,1763631038746,-10630.24177342,0.0001679,2]
[394493318,1763631038756,-200.0,0.00016794,2]
[394493319,1763631038765,-150.0,0.00016794,2]
[394493320,1763631038775,-150.0,0.00016794,2]
[394493321,1763631038784,-150.0,0.00016794,2]
[394493322,1763631038794,-1084.38,0.00016794,2]
[394493323,1763631038804,-150.0,0.000168,2]
[394493324,1763631038814,-169.6,0.000168,2]
[394493325,1763631038824,-169.6,0.000168,2]
[394493326,1763631038835,-337.9,0.000168,2]
[394493327,1763631038845,-150.0,0.00016821,2]
[394493328,1763631038856,-416.99,0.0001683,2]
[394493329,1763631038866,-200.0,0.00016863,2]
[394493330,1763631038876,-200.0,0.00016864,2]
[394493331,1763631038886,-200.0,0.00016864,2]
[394493332,1763631038896,-500.0,0.00016877,2]
[394493333,1763631038906,-473.0,0.00016893,2]
[394493334,1763631038916,-478.61,0.00016894,2]
[394493335,1763631038926,-1600.0,0.000169,6]
[394493336,1763631038938,-289.26,0.000169,2]
[394493337,1763631038948,-150.0,0.000169,2]
[394493338,1763631038958,-150.0,0.000169,2]
[394493339,1763631038968,-150.0,0.000169,2]
[394493340,1763631038978,-150.0,0.000169,2]
[394493341,1763631038988,-150.0,0.000169,2]
[394493342,1763631038999,-1401.66,0.000169,2]
[394493343,1763631039009,-150.0,0.000169,2]
[394493344,1763631039019,-150.0,0.000169,2]
[394493345,1763631039028,-169.55,0.000169,2]
[394493346,1763631039038,-219.24783768,0.000169,2]
[394493347,1763631039047,-136010.33186987,0.000169,2]
[394493348,1763631039056,-207.7987878,0.00016911,2]
[394493349,1763631039066,-181.67343782,0.00016911,2]
[394493350,1763631039075,-500.0,0.00016921,2]
[394493351,1763631039086,-9999.99,0.00016922,2]
[394493352,1763631039095,-9999.99,0.00016922,2]
[394493353,1763631039105,-325.09,0.00016922,2]
[394493354,1763631039115,-999.99,0.00016922,2]
[394493355,1763631039126,-9999.99,0.00016922,2]
[394493356,1763631039136,-299.99,0.00016922,4]
[394493357,1763631039147,-150.99,0.00016922,2]
[394493358,1763631039156,-7801.34,0.00016922,2]
[394493359,1763631039166,-1405.0,0.00016932,2]
[394493360,1763631039175,-1405.0,0.00016947,2]
[394493361,1763631039186,-2571.83570519,0.00016949,2]
[394493362,1763631039195,-10630.24177342,0.00016949,2]
[394493363,1763631039206,-500.0,0.00016973,2]
[394493364,1763631039215,-205.66179312,0.00016973,2]
[394493365,1763631039226,-500.0,0.00016973,2]
[394493366,1763631039236,-500.0,0.00016973,2]
[394493367,1763631039247,-500.0,0.00016973,2]
[394493368,1763631039257,-500.0,0.00016973,2]
[394493369,1763631039267,-500.89803741,0.00016973,2]
[394493370,1763631039276,-500.0,0.00016973,2]
[394493371,1763631039286,-500.0,0.00016973,2]
[394493372,1763631039296,-500.0,0.00016973,2]
[394493373,1763631039306,-500.0,0.00016973,2]
[394493374,1763631039316,-308.78213617,0.00016973,2]
[394493375,1763631039326,-161.97608416,0.00016973,2]
[394493376,1763631039337,-501.11477748,0.00016973,2]
[394493377,1763631039347,-163.17014768,0.00016973,2]
[394493378,1763631039357,-185.75198961,0.00016973,2]
[394493379,1763631039367,-500.0,0.00016973,2]
[394493380,1763631039377,-242.13559859,0.00016973,2]
[394493381,1763631039387,-500.47597632,0.00016973,2]
[394493382,1763631039397,-500.0,0.00016973,2]
[394493383,1763631039410,-500.0,0.00016973,2]
[394493384,1763631039421,-503.69110106,0.00016973,2]
[394493385,1763631039432,-500.0,0.00016973,2]
[394493386,1763631039442,-160.32519666,0.00016973,2]
[394493387,1763631039455,-503.37187186,0.00016973,2]
[394493389,1763631039467,-500.0,0.00016973,2]
[394493390,1763631039478,-500.0,0.00016973,2]
[394493391,1763631039489,-500.0,0.00016973,2]
[394493394,1763631039657,-500.95085178,0.00016973,2]
[394493395,1763631039668,-164.7969378,0.00016973,2]
[394493396,1763631039679,-500.0,0.00016973,2]
[394493397,1763631039690,-498.95764127,0.00016973,2]
[394493398,1763631039700,-500.0,0.00016973,2]
[394493399,1763631039710,-500.0,0.00016973,2]
[394493400,1763631039720,-501.31245106,0.00016973,2]
[394493401,1763631039730,-502.63138102,0.00016973,2]
[394493402,1763631039739,-500.0,0.00016973,2]
[394493403,1763631039748,-500.0,0.00016973,2]
[394493404,1763631039758,-500.0,0.00016973,2]
[394493405,1763631039768,-500.0,0.00016973,2]
[394493406,1763631039778,-500.0,0.00016973,2]
[394493407,1763631039787,-500.0,0.00016973,2]
[394493408,1763631039797,-504.75605481,0.00016973,2]
[394493409,1763631039806,-1859.0,0.00016973,2]
[394493410,1763631039815,-175.82770283,0.00016976,2]
[394493411,1763631039825,-1405.0,0.00016983,2]
[394493412,1763631039835,-500.0,0.00016986,2]
[394493413,1763631039845,-192511.97,0.00016986,2]
[394493414,1763631039854,-1859.0,0.00016988,2]
[394493415,1763631039863,-329.89195688,0.00016999,2]
[394493416,1763631039873,-552.5737356,0.00016999,2]
[394493417,1763631039883,-500.0,0.00016999,2]
[394493418,1763631039892,-500.0,0.00016999,2]
[394493419,1763631039901,-300.03371266,0.00016999,2]
[394493420,1763631039911,-186.8315306,0.00016999,2]
[394493421,1763631039920,-390.94451084,0.00016999,2]
[394493422,1763631039929,-500.0,0.00016999,2]
[394493423,1763631039938,-500.0,0.00016999,2]
[394493424,1763631039948,-500.0,0.00016999,2]
[394493425,1763631039957,-500.0,0.00016999,2]
[394493426,1763631039967,-500.0,0.00016999,2]
[394493427,1763631039976,-4843.0,0.00017,2]
[394493428,1763631039986,-124692.50247438,0.00017,2]
[394493429,1763631039996,-250.0,0.00017,2]
[394493430,1763631040005,-2833191.23927787,0.00017,2]
[394493431,1763631040048,-32427.49671238,0.00017,2]
[394493432,1763631040059,-762.6747137,0.00017,2]
[394493434,1763631040168,-226.92388959,0.00016973,2]
[394493435,1763631040179,-659429.95480579,0.00017,2]
[394493436,1763631040190,-300.0,0.00017011,2]
[394493437,1763631040199,-1405.0,0.00017019,2]
[394493438,1763631040209,-500.0,0.00017021,2]
[394493439,1763631040218,-500.0,0.00017021,2]
[394493440,1763631040228,-1000.0,0.00017021,2]
[394493441,1763631040238,-180.38262795,0.00017021,2]
[394493442,1763631040247,-1000.0,0.00017021,2]
[394493443,1763631040256,-1405.0,0.00017029,2]
[394493444,1763631040265,-310.02,0.00017035,2]
[394493445,1763631040275,-217.06,0.00017038,2]
[394493446,1763631040284,-1084.38,0.00017068,2]
[394493447,1763631040294,-150.0,0.000171,2]
[394493448,1763631040304,-150.0,0.000171,2]
[394493449,1763631040313,-150.0,0.000171,2]
[394493450,1763631040323,-1011.0,0.000171,2]
[394493451,1763631040333,-2571.83570519,0.00017107,2]
[394493452,1763631040342,-10630.24177342,0.00017107,2]
[394493453,1763631040353,-171.25086209,0.00017115,2]
[394493454,1763631040362,-500.0,0.00017121,2]
[394493455,1763631040372,-200.0,0.00017121,2]
[394493456,1763631040381,-501.23611998,0.00017121,2]
[394493457,1763631040391,-1405.0,0.00017122,2]
[394493458,1763631040401,-1859.0,0.00017171,2]
[394493459,1763631040415,-500.0,0.00017178,2]
[394493460,1763631040424,-151.0,0.000172,2]
[394493461,1763631040435,-151.0,0.000172,2]
[394493462,1763631040446,-151.0,0.000172,2]
[394493463,1763631040456,-168.807977,0.000172,2]
[394493464,1763631040467,-4417.0,0.00017235,2]
[394493465,1763631040476,-151.0,0.00017236,2]
[394493466,1763631040487,-151.0,0.00017236,2]
[394493467,1763631040497,-2571.83570519,0.00017266,2]
[394493468,1763631040507,-10630.24177342,0.00017266,2]
[394493469,1763631040517,-166.66,0.00017266,2]
[394493470,1763631040527,-1859.0,0.00017301,2]
[394493471,1763631040537,-1084.38,0.00017342,2]
[394493472,1763631040547,-500.0,0.00017342,2]
[394493473,1763631040557,-4939.0,0.00017374,2]
[394493474,1763631040567,-150.0,0.000174,2]
[394493475,1763631040576,-2500.0,0.000174,6]
[394493476,1763631040586,-2571.83570519,0.00017424,2]
[394493477,1763631040595,-10630.24177342,0.00017424,2]
[394493478,1763631040605,-259.33,0.00017466,2]
[394493479,1763631040615,-3300.0,0.000175,6]
[394493480,1763631040624,-1000.0,0.00017521,2]
[394493481,1763631040634,-1000.0,0.00017521,2]
[394493482,1763631040643,-1000.0,0.00017521,2]
[394493483,1763631040653,-1000.0,0.00017521,2]
[394493484,1763631040662,-1000.0,0.00017521,2]
[394493485,1763631040672,-214.97423647,0.00017521,2]
[394493486,1763631040683,-1000.0,0.00017521,2]
[394493487,1763631040692,-1000.0,0.00017521,2]
[394493488,1763631040702,-1000.0,0.00017521,2]
[394493489,1763631040711,-1062.46189258,0.00017521,2]
[394493490,1763631040720,-1000.0,0.00017521,2]
[394493491,1763631040730,-1000.0,0.00017521,2]
[394493492,1763631040739,-1000.0,0.00017521,2]
[394493493,1763631040749,-1000.0,0.00017521,2]
[394493494,1763631040758,-1005.0755916,0.00017521,2]
[394493495,1763631040767,-1000.0,0.00017521,2]
[394493496,1763631040776,-1000.0,0.00017521,2]
[394493497,1763631040786,-1000.0,0.00017521,2]
[394493498,1763631040795,-1000.0,0.00017521,2]
[394493499,1763631040804,-1000.0,0.00017521,2]
[394493500,1763631040813,-515.9808025,0.00017521,2]
[394493501,1763631040823,-600.29489185,0.00017521,2]
[394493502,1763631040832,-935.0,0.00017544,2]
[394493503,1763631040841,-1500.0,0.00017568,2]
[394493504,1763631040851,-1500.0,0.00017568,2]
[394493505,1763631040860,-2571.83570519,0.00017583,2]
[394493506,1763631040870,-10630.24177342,0.00017583,2]
[394493507,1763631040879,-500.0,0.00017595,2]
[394493508,1763631040889,-1000.0,0.00017596,2]
[394493509,1763631040898,-4200.0,0.000176,6]
[394493510,1763631040907,-822.0,0.00017611,2]
[394493511,1763631040917,-1600.0,0.00017611,2]
[394493512,1763631040926,-1256.0,0.00017611,2]
[394493513,1763631040936,-794.0,0.00017611,2]
[394493514,1763631040946,-907.0,0.00017611,2]
[394493515,1763631040956,-1220.186,0.00017611,2]
[394493516,1763631040966,-609.0,0.00017611,2]
[394493517,1763631040976,-575.0,0.00017611,2]
[394493518,1763631040985,-1319.0,0.00017611,2]
[394493519,1763631040995,-3434.0,0.00017611,2]
[394493520,1763631041005,-1084.38,0.00017616,2]
[394493521,1763631041014,-926.54450684,0.00017637,2]
[394493522,1763631041024,-500.0,0.00017671,2]
[394493523,1763631041033,-800.0,0.000177,6]
[394493524,1763631041043,-162.95436659,0.0001773,2]